fUSD/lending_fUSD_20250117
["ID","MTS","AMOUNT","RATE_DAILY","PERIOD"]
[349264318,1737082247463,-500.0,0.00027397,3]
[349264319,1737082247473,-8831.77,0.00027397,3]
[349264320,1737082247482,-500.0,0.00027397,3]
[349264321,1737082247492,-608.7,0.00027397,3]
[349264322,1737082247502,-2093.0136591,0.00027397,3]
[349264323,1737082247511,-500.0,0.00027397,3]
[349264324,1737082247520,-266.93776054,0.00027397,3]
[349264325,1737082247536,-500.0,0.00027397,3]
[349264326,1737082247545,-8831.77,0.00027397,3]
[349264327,1737082247554,-500.0,0.00027397,3]
[349264328,1737082247564,-500.0,0.00027397,3]
[349264329,1737082247573,-608.7,0.00027397,3]
[349264330,1737082247582,-500.0,0.00027397,3]
[349264331,1737082247591,-500.0,0.00027397,3]
[349264332,1737082247600,-500.0,0.00027397,3]
[349264333,1737082247609,-388.9419095,0.00027397,3]
[349264334,1737082247619,-8831.77,0.00027397,3]
[349264335,1737082247628,-500.0,0.00027397,3]
[349264336,1737082247637,-608.7,0.00027397,3]
[349264337,1737082247648,-8831.77,0.00027397,3]
[349264338,1737082247658,-2358.09,0.00027397,3]
[349264339,1737082247668,-500.0,0.00027397,3]
[349264340,1737082247678,-608.7,0.00027397,3]
[349264341,1737082247687,-2358.09,0.00027397,3]
[349264342,1737082247696,-8831.77,0.00027397,3]
[349264343,1737082247706,-2358.09,0.00027397,3]
[349264344,1737082247716,-608.7,0.00027397,3]
[349264345,1737082247726,-500.0,0.00027397,3]
[349264346,1737082247736,-2358.09,0.00027397,3]
[349264347,1737082247746,-8831.77,0.00027397,3]
[349264348,1737082247755,-2358.09,0.00027397,3]
[349264349,1737082247765,-2358.09,0.00027397,3]
[349264350,1737082247777,-500.0,0.00027397,3]
[349264351,1737082247788,-608.7,0.00027397,3]
[349264352,1737082247798,-2358.09,0.00027397,3]
[349264353,1737082247808,-8831.77,0.00027397,3]
[349264354,1737082247817,-2358.09,0.00027397,3]
[349264355,1737082247827,-500.0,0.00027397,3]
[349264356,1737082247836,-2358.09,0.00027397,3]
[349264357,1737082247845,-8831.77,0.00027397,3]
[349264358,1737082247855,-2358.09,0.00027397,3]
[349264359,1737082247864,-608.7,0.00027397,3]
[349264360,1737082247874,-500.0,0.00027397,3]
[349264361,1737082247883,-2358.09,0.00027397,3]
[349264362,1737082247892,-7632.42332525,0.00027397,3]
[349264363,1737082247912,-437.62049209,0.00027397,3]
[349264364,1737082247923,-761.72618266,0.00027397,3]
[349264365,1737082247933,-608.7,0.00027397,3]
[349264366,1737082247943,-535.92381734,0.00027397,3]
[349264367,1737082247954,-366.81850001,0.00027397,3]
[349264368,1737082247965,-361.44000017,0.00027397,3]
[349264369,1737082247983,-652.01062997,0.00027397,3]
[349264370,1737082248181,-426.141423,0.00027297,2]
[349264371,1737082248192,-441.89705251,0.00027397,3]
[349264372,1737082248202,-500.0,0.00027397,3]
[349264373,1737082248211,-2358.09,0.00027397,3]
[349264374,1737082248221,-2358.09,0.00027397,3]
[349264375,1737082248231,-8831.77,0.00027397,3]
[349264376,1737082248241,-2358.09,0.00027397,3]
[349264377,1737082248250,-2358.09,0.00027397,3]
[349264378,1737082248260,-2358.09,0.00027397,3]
[349264379,1737082248269,-608.7,0.00027397,3]
[349264380,1737082248282,-500.0,0.00027397,3]
[349264381,1737082248292,-2358.09,0.00027397,3]
[349264382,1737082248301,-2358.09,0.00027397,3]
[349264383,1737082248311,-8831.77,0.00027397,3]
[349264384,1737082248321,-2358.09,0.00027397,3]
[349264385,1737082248330,-2358.09,0.00027397,3]
[349264386,1737082248340,-608.7,0.00027397,3]
[349264387,1737082248349,-500.0,0.00027397,3]
[349264388,1737082248359,-2358.09,0.00027397,3]
[349264389,1737082248369,-1000.0,0.00027397,5]
[349264390,1737082248379,-500.0,0.00027397,3]
[349264391,1737082248389,-505.97564114,0.00027397,3]
[349264392,1737082248399,-2358.09,0.00027397,3]
[349264393,1737082248411,-1000.0,0.00027397,5]
[349264394,1737082248422,-2358.1980151,0.00027397,3]
[349264395,1737082248432,-620.03039691,0.00027397,5]
[349264396,1737082248443,-8831.77,0.00027397,3]
[349264397,1737082248453,-500.0,0.00027397,3]
[349264398,1737082248463,-608.7,0.00027397,3]
[349264399,1737082248473,-6320.72116333,0.00027397,3]
[349264400,1737082248490,-2511.04883667,0.00027397,3]
[349264401,1737082248499,-608.7,0.00027397,3]
[349264402,1737082248509,-500.0,0.00027397,3]
[349264403,1737082248519,-8831.77,0.00027397,3]
[349264404,1737082248532,-500.0,0.00027397,3]
[349264405,1737082248542,-2798.212674,0.00027397,3]
[349264406,1737082248555,-3704.03292685,0.00027397,3]
[349264407,1737082248570,-2329.52439915,0.00027397,3]
[349264408,1737082248580,-608.7,0.00027397,3]
[349264409,1737082248590,-500.0,0.00027397,3]
[349264410,1737082248599,-608.7,0.00027397,3]
[349264411,1737082248608,-5789.27560085,0.00027397,3]
[349264412,1737082248621,-3042.49439915,0.00027397,3]
[349264413,1737082248630,-500.0,0.00027397,3]
[349264414,1737082248640,-608.8156667,0.00027397,3]
[349264415,1737082248649,-8831.77,0.00027397,3]
[349264416,1737082248660,-500.0,0.00027397,3]
[349264417,1737082248670,-8831.86755951,0.00027397,3]
[349264418,1737082248679,-500.0,0.00027397,3]
[349264419,1737082248689,-415.99656819,0.00027397,3]
[349264420,1737082248699,-500.0,0.00027397,3]
[349264421,1737082248708,-500.0,0.00027397,3]
[349264422,1737082248718,-500.0,0.00027397,3]
[349264423,1737082248728,-500.0,0.00027397,3]
[349264424,1737082248737,-500.0,0.00027397,3]
[349264425,1737082248747,-500.0,0.00027397,3]
[349264426,1737082248756,-500.0,0.00027397,3]
[349264427,1737082248766,-500.0,0.00027397,3]
[349264428,1737082248777,-500.0,0.00027397,3]
[349264429,1737082248788,-500.0,0.00027397,3]
[349264430,1737082248798,-500.0,0.00027397,3]
[349264431,1737082248807,-1451.69,0.00027397,3]
[349264432,1737082248817,-500.0,0.00027397,3]
[349264433,1737082248827,-1451.69,0.00027397,3]
[349264434,1737082248837,-151.0,0.00027397,7]
[349264435,1737082248847,-205.06942189,0.00027397,3]
[349264436,1737082248857,-1451.69,0.00027397,3]
[349264437,1737082248867,-641.63,0.00027397,3]
[349264438,1737082248878,-151.0,0.00027397,7]
[349264439,1737082248887,-1451.69,0.00027397,3]
[349264440,1737082248897,-1451.69,0.00027397,3]
[349264441,1737082248907,-1451.69,0.00027397,3]
[349264442,1737082248916,-501.58248001,0.00027397,3]
[349264443,1737082248926,-1451.69,0.00027397,3]
[349264444,1737082248935,-151.0,0.00027397,7]
[349264445,1737082248945,-641.63,0.00027397,3]
[349264446,1737082248955,-1451.69,0.00027397,3]
[349264447,1737082248965,-1451.69,0.00027397,3]
[349264448,1737082248974,-1451.69,0.00027397,3]
[349264449,1737082248984,-500.0,0.00027397,3]
[349264450,1737082248994,-1451.69,0.00027397,3]
[349264451,1737082249004,-500.0,0.00027397,3]
[349264452,1737082249015,-151.0,0.00027397,7]
[349264453,1737082249026,-260.525535,0.00027397,7]
[349264454,1737082249036,-500.0,0.00027397,3]
[349264455,1737082249046,-500.0,0.00027397,3]
[349264456,1737082249056,-1451.69,0.00027397,3]
[349264457,1737082249067,-641.63,0.00027397,3]
[349264458,1737082249077,-1451.69,0.00027397,3]
[349264459,1737082249087,-516.70528721,0.00027397,3]
[349264460,1737082249097,-1451.69,0.00027397,3]
[349264461,1737082249107,-1451.69,0.00027397,3]
[349264462,1737082249119,-1451.69,0.00027397,3]
[349264463,1737082249128,-839.41795,0.00027397,7]
[349264464,1737082249138,-1451.69,0.00027397,3]
[349264465,1737082249147,-839.41795,0.00027397,7]
[349264466,1737082249157,-641.63,0.00027397,3]
[349264467,1737082249167,-1451.69,0.00027397,3]
[349264468,1737082249176,-839.41795,0.00027397,7]
[349264469,1737082249186,-1451.69,0.00027397,3]
[349264470,1737082249196,-626.38,0.00027397,3]
[349264471,1737082249206,-1451.69,0.00027397,3]
[349264472,1737082249216,-839.41795,0.00027397,7]
[349264473,1737082249225,-1451.69,0.00027397,3]
[349264474,1737082249234,-626.38,0.00027397,3]
[349264475,1737082249244,-839.41795,0.00027397,7]
[349264476,1737082249253,-1451.69,0.00027397,3]
[349264477,1737082249263,-626.38,0.00027397,3]
[349264478,1737082249272,-839.41795,0.00027397,7]
[349264479,1737082249283,-1451.69,0.00027397,3]
[349264480,1737082249293,-626.38,0.00027397,3]
[349264481,1737082249303,-839.41795,0.00027397,7]
[349264482,1737082249313,-626.38,0.00027397,3]
[349264483,1737082249323,-1451.74087362,0.00027397,3]
[349264484,1737082249333,-641.63,0.00027397,3]
[349264485,1737082249343,-839.41795,0.00027397,7]
[349264486,1737082249352,-626.38,0.00027397,3]
[349264487,1737082249362,-626.38,0.00027397,3]
[349264488,1737082249371,-626.38,0.00027397,3]
[349264489,1737082249380,-626.38,0.00027397,3]
[349264490,1737082249390,-641.63,0.00027397,3]
[349264491,1737082249401,-626.38,0.00027397,3]
[349264492,1737082249412,-839.41795,0.00027397,7]
[349264493,1737082249422,-626.38,0.00027397,3]
[349264494,1737082249432,-839.41795,0.00027397,7]
[349264495,1737082249443,-626.38,0.00027397,3]
[349264496,1737082249452,-839.41795,0.00027397,7]
[349264497,1737082249461,-626.38,0.00027397,3]
[349264498,1737082249471,-641.63,0.00027397,3]
[349264499,1737082249482,-839.41795,0.00027397,7]
[349264500,1737082249492,-626.38,0.00027397,3]
[349264501,1737082249502,-807.8,0.00027397,3]
[349264502,1737082249512,-626.38,0.00027397,3]
[349264503,1737082249522,-839.41795,0.00027397,7]
[349264504,1737082249534,-626.38,0.00027397,3]
[349264505,1737082249543,-839.41795,0.00027397,7]
[349264506,1737082249552,-641.63,0.00027397,3]
[349264507,1737082249562,-500.0,0.00027397,3]
[349264508,1737082249571,-626.38,0.00027397,3]
[349264509,1737082249581,-807.8,0.00027397,3]
[349264510,1737082249590,-626.38,0.00027397,3]
[349264511,1737082249599,-839.41795,0.00027397,7]
[349264512,1737082249609,-626.38,0.00027397,3]
[349264513,1737082249619,-299.34548537,0.00027397,3]
[349264514,1737082249628,-641.63,0.00027397,3]
[349264515,1737082249639,-839.41795,0.00027397,7]
[349264516,1737082249649,-626.38,0.00027397,3]
[349264517,1737082249658,-807.8,0.00027397,3]
[349264518,1737082249668,-626.38,0.00027397,3]
[349264519,1737082249678,-626.38,0.00027397,3]
[349264520,1737082249687,-641.63,0.00027397,3]
[349264521,1737082249697,-626.38,0.00027397,3]
[349264522,1737082249707,-807.8,0.00027397,3]
[349264523,1737082249716,-626.57693774,0.00027397,3]
[349264524,1737082249725,-641.63,0.00027397,3]
[349264525,1737082249735,-807.8,0.00027397,3]
[349264526,1737082249745,-3162.05,0.00027397,3]
[349264527,1737082249754,-3162.05,0.00027397,3]
[349264528,1737082249764,-641.63,0.00027397,3]
[349264529,1737082249773,-807.8,0.00027397,3]
[349264530,1737082249785,-3306.97,0.00027397,3]
[349264531,1737082249796,-3162.05,0.00027397,3]
[349264532,1737082249806,-3306.97,0.00027397,3]
[349264533,1737082249815,-3162.05,0.00027397,3]
[349264534,1737082249826,-641.63,0.00027397,3]
[349264535,1737082249835,-3306.97,0.00027397,3]
[349264536,1737082249845,-807.8,0.00027397,3]
[349264537,1737082249854,-151.0,0.00027397,7]
[349264538,1737082249864,-3162.05,0.00027397,3]
[349264539,1737082249873,-3306.97,0.00027397,3]
[349264540,1737082249883,-3162.05,0.00027397,3]
[349264541,1737082249892,-641.63,0.00027397,3]
[349264542,1737082249902,-3306.97,0.00027397,3]
[349264543,1737082249911,-151.577622,0.00027397,7]
[349264544,1737082249921,-807.8,0.00027397,3]
[349264545,1737082249931,-3162.05,0.00027397,3]
[349264546,1737082249940,-3306.97,0.00027397,3]
[349264547,1737082249949,-3162.05,0.00027397,3]
[349264548,1737082249959,-3306.97,0.00027397,3]
[349264549,1737082249968,-641.63,0.00027397,3]
[349264550,1737082249977,-3162.05,0.00027397,3]
[349264551,1737082249987,-3306.97,0.00027397,3]
[349264552,1737082250001,-3162.05,0.00027397,3]
[349264553,1737082250012,-807.8,0.00027397,3]
[349264554,1737082250022,-3306.97,0.00027397,3]
[349264555,1737082250034,-1067.42,0.00027397,3]
[349264556,1737082250044,-3162.05,0.00027397,3]
[349264557,1737082250053,-641.63,0.00027397,3]
[349264558,1737082250063,-3306.97,0.00027397,3]
[349264559,1737082250073,-1067.42,0.00027397,3]
[349264560,1737082250082,-3306.97,0.00027397,3]
[349264561,1737082250091,-1067.42,0.00027397,3]
[349264562,1737082250101,-807.8,0.00027397,3]
[349264563,1737082250111,-3162.05,0.00027397,3]
[349264564,1737082250120,-1067.42,0.00027397,3]
[349264565,1737082250130,-3306.97,0.00027397,3]
[349264566,1737082250139,-641.63,0.00027397,3]
[349264567,1737082250150,-3162.05,0.00027397,3]
[349264568,1737082250159,-1067.42,0.00027397,3]
[349264569,1737082250169,-3306.97,0.00027397,3]
[349264570,1737082250179,-3162.05,0.00027397,3]
[349264571,1737082250188,-1067.42,0.00027397,3]
[349264572,1737082250197,-3306.97,0.00027397,3]
[349264573,1737082250206,-3162.05,0.00027397,3]
[349264574,1737082250217,-641.63,0.00027397,3]
[349264575,1737082250226,-807.8,0.00027397,3]
[349264576,1737082250237,-1067.42,0.00027397,3]
[349264577,1737082250246,-3306.97,0.00027397,3]
[349264578,1737082250255,-3162.05,0.00027397,3]
[349264579,1737082250264,-1067.42,0.00027397,3]
[349264580,1737082250274,-3306.97,0.00027397,3]
[349264581,1737082250285,-3162.05,0.00027397,3]
[349264582,1737082250294,-3306.97,0.00027397,3]
[349264583,1737082250303,-807.8,0.00027397,3]
[349264584,1737082250312,-641.63,0.00027397,3]
[349264585,1737082250322,-3162.05,0.00027397,3]
[349264586,1737082250331,-1067.42,0.00027397,3]
[349264587,1737082250340,-3306.97,0.00027397,3]
[349264588,1737082250349,-3162.05,0.00027397,3]
[349264589,1737082250358,-1067.42,0.00027397,3]
[349264590,1737082250368,-3306.97,0.00027397,3]
[349264591,1737082250377,-3162.05,0.00027397,3]
[349264592,1737082250387,-807.8,0.00027397,3]
[349264593,1737082250396,-641.63,0.00027397,3]
[349264594,1737082250410,-1067.42,0.00027397,3]
[349264595,1737082250421,-3306.97,0.00027397,3]
[349264596,1737082250433,-3162.05,0.00027397,3]
[349264597,1737082250443,-1067.42,0.00027397,3]
[349264598,1737082250455,-3306.97,0.00027397,3]
[349264599,1737082250465,-3162.05,0.00027397,3]
[349264600,1737082250475,-1067.42,0.00027397,3]
[349264601,1737082250485,-3162.05,0.00027397,3]
[349264602,1737082250495,-3306.97,0.00027397,3]
[349264603,1737082250504,-1067.42,0.00027397,3]
[349264604,1737082250514,-3162.2137016,0.00027397,3]
[349264605,1737082250524,-3306.97,0.00027397,3]
[349264606,1737082250535,-1067.42,0.00027397,3]
[349264607,1737082250545,-641.63,0.00027397,3]
[349264608,1737082250555,-807.8,0.00027397,3]
[349264609,1737082250565,-575.65,0.00027397,3]
[349264610,1737082250574,-1067.42,0.00027397,3]
[349264611,1737082250584,-3307.06042096,0.00027397,3]
[349264612,1737082250594,-575.65,0.00027397,3]
[349264613,1737082250603,-641.63,0.00027397,3]
[349264614,1737082250612,-1067.42,0.00027397,3]
[349264615,1737082250622,-807.8,0.00027397,3]
[349264616,1737082250631,-575.65,0.00027397,3]
[349264617,1737082250640,-1067.42,0.00027397,3]
[349264618,1737082250650,-575.65,0.00027397,3]
[349264619,1737082250660,-1067.42,0.00027397,3]
[349264620,1737082250815,-641.63,0.00027397,3]
[349264621,1737082250831,-575.65,0.00027397,3]
[349264622,1737082250842,-807.8,0.00027397,3]
[349264623,1737082250851,-1067.42,0.00027397,3]
[349264624,1737082250862,-575.65,0.00027397,3]
[349264625,1737082250871,-1067.42,0.00027397,3]
[349264626,1737082250884,-641.68485005,0.00027397,3]
[349264627,1737082250894,-575.65,0.00027397,3]
[349264628,1737082250904,-575.65,0.00027397,3]
[349264629,1737082250914,-1067.42,0.00027397,3]
[349264630,1737082250924,-807.8,0.00027397,3]
[349264631,1737082250933,-575.65,0.00027397,3]
[349264632,1737082250943,-1067.42,0.00027397,3]
[349264633,1737082250953,-575.65,0.00027397,3]
[349264634,1737082250963,-1067.63840127,0.00027397,3]
[349264635,1737082250974,-575.65,0.00027397,3]
[349264636,1737082250983,-575.65,0.00027397,3]
[349264637,1737082250994,-807.8,0.00027397,3]
[349264638,1737082251004,-575.65,0.00027397,3]
[349264639,1737082251014,-5978.85,0.00027397,3]
[349264640,1737082251030,-575.65,0.00027397,3]
[349264641,1737082251039,-5978.85,0.00027397,3]
[349264642,1737082251050,-575.65,0.00027397,3]
[349264643,1737082251059,-807.8,0.00027397,3]
[349264644,1737082251069,-5978.85,0.00027397,3]
[349264645,1737082251078,-575.65,0.00027397,3]
[349264646,1737082251088,-5978.85,0.00027397,3]
[349264647,1737082251098,-575.65,0.00027397,3]
[349264648,1737082251107,-5978.85,0.00027397,3]
[349264649,1737082251118,-575.65,0.00027397,3]
[349264650,1737082251127,-5978.85,0.00027397,3]
[349264651,1737082251138,-575.65,0.00027397,3]
[349264652,1737082251149,-5978.85,0.00027397,3]
[349264653,1737082251158,-575.65,0.00027397,3]
[349264654,1737082251168,-807.8,0.00027397,3]
[349264655,1737082251177,-5978.85,0.00027397,3]
[349264656,1737082251186,-2943.79546991,0.00027397,3]
[349264657,1737082251232,-3035.05453009,0.00027397,3]
[349264658,1737082251243,-575.65,0.00027397,3]
[349264659,1737082251252,-807.8,0.00027397,3]
[349264660,1737082251262,-5978.85,0.00027397,3]
[349264661,1737082251272,-98.57595451,0.00027397,3]
[349264662,1737082251619,-5978.85,0.00027397,3]
[349264663,1737082251630,-5978.85,0.00027397,3]
[349264664,1737082251641,-807.8,0.00027397,3]
[349264665,1737082251651,-5978.85,0.00027397,3]
[349264666,1737082251660,-5978.85,0.00027397,3]
[349264667,1737082251669,-5885.7443115,0.00027397,3]
[349264668,1737082251682,-93.1056885,0.00027397,3]
[349264669,1737082251691,-2881.44508297,0.00027397,3]
[349264670,1737082251702,-739.671769,0.00027397,3]
[349264671,1737082256081,10000.0,0.00022,2]
[349264672,1737082298750,10000.0,0.00022,2]
[349264674,1737082869458,152.36,0.00010137,2]
[349264678,1737083206139,-500.0,0.00019201,2]
[349264679,1737083206163,-179.57836952,0.00019201,2]
[349264680,1737083206220,-188.87226377,0.00019201,2]
[349264681,1737083206244,-3230.74820573,0.00019301,2]
[349264682,1737083230132,-74.76779427,0.00019301,2]
[349264683,1737083230156,-176.226,0.00019301,2]
[349264684,1737083230180,-152.36,0.00019895,2]
[349264685,1737083230203,-300.0,0.00020999,2]
[349264686,1737083230225,-1060.16978421,0.00021,2]
[349264687,1737083245127,-217.18264661,0.00019201,2]
[349264688,1737083245150,-217.18264661,0.00019498,2]
[349264689,1737083245175,-885.84627267,0.00021,2]
[349264698,1737083353089,-217.18264661,0.000209,2]
[349264699,1737083353112,-300.0,0.00020999,2]
[349264700,1737083353135,-28053.98394312,0.00021,2]
[349264701,1737083353157,-235.0,0.0002194,2]
[349264702,1737083353180,-420.0,0.00022842,2]
[349264703,1737083353205,-235.0,0.0002286,2]
[349264704,1737083353228,-235.0,0.0002378,2]
[349264705,1737083353253,-651.51,0.00024275,2]
[349264710,1737083424369,180.0,0.000231,120]
[349264713,1737083432121,-1736.9357337,0.00024683,2]
[349264714,1737083432132,-235.0,0.000247,2]
[349264715,1737083432143,-500.0,0.00024932,2]
[349264716,1737083432155,-167.28,0.00025501,3]
[349264717,1737083432167,-235.0,0.0002561,2]
[349264718,1737083432178,-250.0,0.00026042,2]
[349264719,1737083432189,-1817.87,0.00026084,2]
[349264720,1737083432200,-430.61,0.00026107,120]
[349264721,1737083432211,-250.0,0.00026124,2]
[349264722,1737083432224,-345.71,0.0002619,2]
[349264723,1737083432235,-1000.0,0.0002619,2]
[349264724,1737083432247,-212.66,0.00026249,3]
[349264725,1737083432260,-201.26,0.00026255,3]
[349264726,1737083432271,-279.16,0.00026319,120]
[349264727,1737083432282,-300.0,0.000264,9]
[349264728,1737083432293,-700.0,0.000265,9]
[349264729,1737083432304,-235.0,0.0002653,2]
[349264730,1737083432314,-651.51,0.00026539,2]
[349264731,1737083432325,-2948.703,0.00026547,2]
[349264732,1737083432337,-907.0,0.00026547,2]
[349264733,1737083432347,-1260.0,0.00026547,2]
[349264734,1737083432358,-820.0,0.00026547,2]
[349264735,1737083432368,-538.712,0.00026547,2]
[349264736,1737083432380,-3981.0,0.00026547,2]
[349264738,1737083432391,-2002.65,0.00026591,2]
[349264740,1737083432402,-9999.99,0.00026591,2]
[349264742,1737083432414,-150.99,0.00026591,2]
[349264744,1737083432425,-300.0,0.000266,2]
[349264746,1737083432435,-1100.0,0.000266,9]
[349264748,1737083432447,-1500.0,0.000267,9]
[349264749,1737083432458,-1900.0,0.000268,9]
[349264750,1737083432468,-578.4767375,0.00026849,4]
[349264751,1737083432478,-300.0,0.000269,9]
[349264752,1737083432489,-176.9,0.00026977,2]
[349264753,1737083432499,-550.0,0.00027,2]
[349264754,1737083432512,-1281.29,0.00027123,30]
[349264755,1737083432523,-2685.0,0.00027123,2]
[349264756,1737083432535,-150.0,0.00027135,2]
[349264757,1737083432547,-150.0,0.00027157,2]
[349264758,1737083432559,-150.0,0.00027174,2]
[349264759,1737083432572,-587.12070283,0.00027189,2]
[349264760,1737083432582,-200.0,0.0002719,2]
[349264761,1737083432593,-587.12070283,0.00027195,2]
[349264762,1737083432603,-200.0,0.00027195,2]
[349264763,1737083432612,-587.12070283,0.00027197,2]
[349264764,1737083432622,-2007.37050285,0.00027198,2]
[349264765,1737083432632,-150.0,0.00027199,2]
[349264766,1737083432644,-587.12070283,0.000272,2]
[349264768,1737083432655,-200.0,0.00027201,2]
[349264770,1737083432666,-2982.17082161,0.00027202,2]
[349264772,1737083432678,-150.0,0.00027205,2]
[349264776,1737083432688,-587.12070283,0.00027208,2]
[349264779,1737083432699,-200.0,0.00027216,2]
[349264782,1737083432709,-150.0,0.00027218,2]
[349264784,1737083432719,-6571.94883428,0.00027218,2]
[349264786,1737083432730,-587.12070283,0.0002722,2]
[349264788,1737083432741,-5443.67630677,0.00027221,2]
[349264791,1737083432759,-1128.27252751,0.00027221,2]
[349264793,1737083432769,-2982.17082161,0.00027224,2]
[349264795,1737083432780,-6571.94883428,0.00027235,2]
[349264797,1737083432793,-2007.37050285,0.00027248,2]
[349264799,1737083432803,-2053.67158137,0.00027249,2]
[349264802,1737083432813,-1000.0,0.00027253,2]
[349264804,1737083432824,-2982.17082161,0.00027256,2]
[349264806,1737083432835,-587.12070283,0.00027257,2]
[349264808,1737083432845,-2982.17082161,0.00027257,2]
[349264810,1737083432855,-2007.37050285,0.0002726,2]
[349264812,1737083432867,-2007.37050285,0.00027267,2]
[349264814,1737083432877,-2007.37050285,0.0002727,2]
[349264816,1737083432888,-2007.37050285,0.00027272,2]
[349264818,1737083432898,-2053.67158137,0.00027284,2]
[349264821,1737083432909,-6180.54185867,0.00027288,2]
[349264829,1737083432977,-391.40697561,0.00027288,2]
[349264831,1737083432987,-380.73499729,0.00027297,2]
[349264833,1737083432999,-619.26500271,0.00027297,2]
[349264835,1737083433011,-5000.0,0.00027297,2]
[349264837,1737083433021,-10294.25249734,0.00027297,2]
[349264840,1737083433034,-404.12269541,0.00027297,2]
[349264842,1737083433044,-282.96047726,0.00027297,2]
[349264844,1737083433054,-214.73790397,0.00027297,2]
[349264846,1737083433065,-503.9800546,0.00027297,2]
[349264848,1737083433075,-2053.67158137,0.00027297,2]
[349264850,1737083433085,-150.0,0.000273,2]
[349264852,1737083433096,-1009.0,0.000273,3]
[349264854,1737083433106,-200.0,0.00027305,2]
[349264857,1737083433117,-200.0,0.00027309,2]
[349264859,1737083433127,-200.0,0.00027309,2]
[349264861,1737083433137,-587.12070283,0.00027314,2]
[349264863,1737083433147,-6571.94883428,0.00027318,2]
[349264865,1737083433157,-150.0,0.00027319,2]
[349264867,1737083433167,-200.0,0.0002732,2]
[349264869,1737083433177,-6357.60883718,0.00027321,2]
[349264980,1737083437991,-200.0,0.00026431,2]
[349264981,1737083438002,-214.3399971,0.00027321,2]
[349264982,1737083438012,-2982.17082161,0.00027324,2]
[349264983,1737083438022,-150.0,0.00027326,2]
[349264984,1737083438032,-200.0,0.00027337,2]
[349264985,1737083438042,-150.0,0.00027337,2]
[349264986,1737083438052,-200.0,0.00027345,2]
[349264987,1737083438062,-200.0,0.00027349,2]
[349264988,1737083438072,-2053.67158137,0.00027351,2]
[349264989,1737083438082,-2982.17082161,0.00027355,2]
[349264990,1737083438094,-2982.17082161,0.00027358,2]
[349264991,1737083438104,-2007.37050285,0.0002736,2]
[349264992,1737083438114,-2053.67158137,0.00027365,2]
[349264993,1737083438124,-200.0,0.00027365,2]
[349264994,1737083438134,-2053.67158137,0.00027366,2]
[349264995,1737083438144,-6571.94883428,0.00027366,2]
[349264996,1737083438154,-1033.0,0.0002737,2]
[349264997,1737083438164,-150.5,0.0002737,30]
[349264998,1737083438175,-198.56797001,0.00027371,2]
[349264999,1737083438184,-572.80081496,0.00027373,2]
[349265000,1737083438194,-500.64404719,0.00027373,2]
[349265001,1737083438204,-504.27997614,0.00027373,2]
[349265002,1737083438214,-2982.17082161,0.00027376,2]
[349265003,1737083438225,-2007.37050285,0.00027378,2]
[349265005,1737083438235,-1664.0503531,0.00027378,2]
[349265007,1737083438245,-150.5,0.0002738,30]
[349265009,1737083438255,-6571.94883428,0.00027384,2]
[349265010,1737083438267,-2053.67158137,0.00027385,2]
[349265011,1737083438277,-2053.67158137,0.00027385,2]
[349265012,1737083438287,-150.5,0.0002739,30]
[349265013,1737083438297,-479.91435319,0.0002739,3]